fUST/lending_fUST_20240121
["ID","MTS","AMOUNT","RATE_DAILY","PERIOD"]
[312324211,1705775448211,-511.43936969,0.00041095,31]
[312324213,1705775448219,-500.0,0.00041095,31]
[312324215,1705775448228,-500.0,0.00041095,31]
[312324217,1705775448237,-500.0,0.00041095,31]
[312324219,1705775448247,-500.0,0.00041095,31]
[312324221,1705775448256,-500.0,0.00041095,31]
[312324223,1705775448265,-500.0,0.00041095,31]
[312324225,1705775448274,-500.57631301,0.00041095,31]
[312324227,1705775448283,-1658.08,0.00041095,31]
[312324229,1705775448292,-500.0,0.00041095,31]
[312324231,1705775448301,-500.0,0.00041095,31]
[312324233,1705775448310,-500.0,0.00041095,31]
[312324235,1705775448319,-500.0,0.00041095,31]
[312324237,1705775448327,-500.0,0.00041095,31]
[312324239,1705775448336,-500.0,0.00041095,31]
[312324241,1705775448345,-500.84168177,0.00041095,31]
[312324243,1705775448354,-500.0,0.00041095,31]
[312324245,1705775448362,-500.0,0.00041095,31]
[312324247,1705775448371,-500.0,0.00041095,31]
[312324249,1705775448380,-500.0,0.00041095,31]
[312324251,1705775448389,-507.16567858,0.00041095,31]
[312324253,1705775448397,-500.0,0.00041095,31]
[312324255,1705775448406,-511.88,0.00041095,31]
[312324256,1705775448415,-429.4066776,0.00041095,31]
[312324258,1705775448423,-500.0,0.00041095,31]
[312324271,1705775448525,-500.0,0.00041095,31]
[312324273,1705775448534,-500.0,0.00041095,31]
[312324275,1705775448543,-2260.29,0.00041095,31]
[312324277,1705775448552,-500.0,0.00041095,31]
[312324279,1705775448562,-500.0,0.00041095,31]
[312324281,1705775448571,-500.0,0.00041095,31]
[312324283,1705775448580,-500.0,0.00041095,31]
[312324284,1705775448589,-500.0,0.00041095,31]
[312324286,1705775448598,-500.0,0.00041095,31]
[312324288,1705775448607,-1000.0,0.00041095,2]
[312324290,1705775448616,-865.24,0.00041095,31]
[312324292,1705775448626,-500.0,0.00041095,31]
[312324295,1705775448635,-500.0,0.00041095,31]
[312324296,1705775448645,-531.82829894,0.00041095,31]
[312324298,1705775448654,-500.0,0.00041095,31]
[312324300,1705775448663,-585.23056528,0.00041095,31]
[312324303,1705775448673,-500.0,0.00041095,31]
[312324304,1705775448682,-500.0,0.00041095,31]
[312324307,1705775448692,-168.28229519,0.00041095,31]
[312324308,1705775448706,-500.0,0.00041095,31]
[312324310,1705775448716,-861.86,0.00041095,31]
[312324312,1705775448725,-500.0,0.00041095,31]
[312324314,1705775448736,-500.0,0.00041095,31]
[312324317,1705775448746,-500.0,0.00041095,31]
[312324319,1705775448756,-500.0,0.00041095,31]
[312324320,1705775448765,-500.0,0.00041095,31]
[312324322,1705775448774,-500.0,0.00041095,31]
[312324324,1705775448784,-500.0,0.00041095,31]
[312324326,1705775448793,-1397.61,0.00041095,31]
[312324328,1705775448802,-500.0,0.00041095,31]
[312324330,1705775448811,-500.0,0.00041095,31]
[312324332,1705775448820,-500.0,0.00041095,31]
[312324334,1705775448829,-656.9,0.00041095,31]
[312324336,1705775448838,-1136.3199075,0.00041095,31]
[312324371,1705775449169,-189.22,0.00041095,31]
[312324375,1705775449196,-4141.32,0.0003499,3]
[312324377,1705775449206,-454.2700925,0.00041095,31]
[312324379,1705775449215,-1152.75,0.00041095,31]
[312324381,1705775449224,-1683.11,0.00041095,31]
[312324383,1705775449234,-500.0,0.00041095,31]
[312324385,1705775449244,-760.81996148,0.00041095,2]
[312324387,1705775449255,-239.18003852,0.00041095,2]
[312324389,1705775449264,-500.0,0.00041095,7]
[312324391,1705775449273,-925.61996148,0.00041095,2]
[312324393,1705775449285,-74.38003852,0.00041095,2]
[312324395,1705775449295,-1000.0,0.00041095,2]
[312324397,1705775449304,-245.57109003,0.00041095,2]
[312324399,1705775449316,-678.29005975,0.00041095,2]
[312326002,1705776405098,-312.54692653,0.00027156,2]
[312326016,1705776441087,-154.78330338,0.00027154,4]
[312326017,1705776441110,-1581.76828075,0.00027154,2]
[312326018,1705776441134,-1045.90652664,0.00027154,2]
[312326019,1705776441156,-7756.9112355,0.00027155,2]
[312326021,1705776451084,-200.78457668,0.00027155,2]
[312326022,1705776451107,-365.8106177,0.00027156,2]
[312326023,1705776451129,-824.03065617,0.00027156,2]
[312326024,1705776451152,-791.08112661,0.00027156,2]
[312326155,1705776638275,-154.78330338,0.00026534,4]
[312326157,1705776638284,-1114.14548175,0.00026534,2]
[312326159,1705776638294,-154.78330338,0.00026535,2]
[312326161,1705776638303,-166.666666,0.0002681,2]
[312326163,1705776638314,-763.70587335,0.00027156,2]
[312326165,1705776638323,-470.52459336,0.00027416,2]
[312326167,1705776638332,-2073.0632604,0.00027416,2]
[312326169,1705776638341,-220.37493298,0.00027418,2]
[312326172,1705776638353,-24679.62506702,0.00027418,2]
[312326174,1705776638362,-174.547786,0.00027463,2]
[312326176,1705776638371,-166.666666,0.00027541,2]
[312326178,1705776638380,-170.127689,0.00027889,2]
[312326180,1705776638388,-290.00241025,0.00028013,2]
[312326182,1705776638397,-166.666666,0.00028271,2]
[312326183,1705776638406,-201.327706,0.00028767,2]
[312326185,1705776638415,-308.487984,0.00028767,2]
[312326187,1705776638424,-166.666666,0.00029002,2]
[312326190,1705776638433,-794.89186645,0.00029458,2]
[312326191,1705776638442,-4909.0,0.00029478,3]
[312326194,1705776638453,-7068.97,0.00029479,3]
[312326196,1705776638463,-5890.8,0.00029479,3]
[312326198,1705776638473,-467.81551425,0.00029487,2]
[312326200,1705776638482,-241.71048008,0.00029487,2]
[312326202,1705776638491,-291.09779907,0.00029487,2]
[312326204,1705776638500,-213.72364692,0.00029487,2]
[312326206,1705776638510,-494.08849875,0.00029487,2]
[312326208,1705776638521,-341.21890079,0.00029487,2]
[312326209,1705776638530,-506.98936233,0.00029487,2]
[312326212,1705776638539,-368.33507795,0.00029487,2]
[312326214,1705776638550,-201.11814848,0.00029487,2]
[312326216,1705776638559,-170.76550909,0.00029487,2]
[312326218,1705776638568,-428.76124721,0.00029487,2]
[312326220,1705776638577,-246.0287908,0.00029487,2]
[312326222,1705776638586,-205.34179861,0.00029487,2]
[312326224,1705776638596,-1570.89243892,0.00029487,2]
[312326226,1705776638605,-425.62034809,0.00029487,2]
[312326227,1705776638614,-677.75639408,0.00029487,2]
[312326229,1705776638625,-1169.47942517,0.00029487,2]
[312326231,1705776638634,-4333.10440972,0.00029487,2]
[312326233,1705776638643,-155.96557472,0.00029487,2]
[312326235,1705776638652,-261.05411193,0.00029487,2]
[312326237,1705776638660,-323.47024933,0.00029487,2]
[312326239,1705776638670,-5892.59541396,0.00029487,2]
[312326241,1705776638679,-1578.81727872,0.00029487,2]
[312326243,1705776638688,-414.70781485,0.00029487,2]
[312326245,1705776638697,-678.05962952,0.00029487,2]
[312326247,1705776638706,-830.18439258,0.00029487,2]
[312326249,1705776638715,-1010.91615281,0.00029487,2]
[312326251,1705776638725,-297.00148427,0.00029488,2]
[312326253,1705776638733,-4642.93341299,0.00029488,2]
[312326255,1705776638743,-222497.36158048,0.00029489,2]
[312326257,1705776638753,-308.487984,0.00029648,2]
[312326259,1705776638763,-166.666666,0.00029733,2]
[312326261,1705776638773,-200.0,0.00029874,15]
[312326263,1705776638782,-345.07068784,0.0003,2]
[312326265,1705776638791,-6763.78500734,0.0003,4]
[312326267,1705776638800,-244.03237749,0.0003,4]
[312326269,1705776638810,-217.0,0.0003,2]
[312326271,1705776638819,-500.0,0.00030136,2]
[312326273,1705776638829,-500.0,0.00030273,2]
[312326275,1705776638838,-500.0,0.0003041,2]
[312326277,1705776638847,-166.666666,0.00030464,2]
[312326279,1705776638856,-308.487984,0.00030528,2]
[312326281,1705776638865,-500.0,0.00030547,2]
[312326283,1705776638874,-500.0,0.00030684,2]
[312326285,1705776638883,-500.0,0.00030821,2]
[312326287,1705776638892,-500.0,0.00030958,2]
[312326289,1705776638901,-440.98044229,0.00030999,2]
[312326291,1705776638910,-238.14143998,0.00031,4]
[312326293,1705776638919,-500.0,0.00031095,2]
[312326295,1705776638928,-308.487984,0.00031409,2]
[312326297,1705776638937,-410.78936956,0.00031947,2]
[312326299,1705776638946,-615.9347942,0.00031947,2]
[312326301,1705776638955,-500.0,0.00031947,2]
[312326303,1705776638963,-500.0,0.00031947,2]
[312326305,1705776638972,-500.0,0.00031947,2]
[312326307,1705776638982,-500.0,0.00031947,2]
[312326309,1705776638991,-500.0,0.00031947,2]
[312326311,1705776639000,-500.0,0.00031947,2]
[312326313,1705776639009,-500.0,0.00031947,2]
[312326315,1705776639018,-651.14015924,0.00031947,2]
[312326317,1705776639027,-500.0,0.00031947,2]
[312326319,1705776639036,-500.0,0.00031947,2]
[312326321,1705776639045,-500.0,0.00031947,2]
[312326323,1705776639054,-197.01850652,0.00031947,2]
[312326325,1705776639063,-491.50311544,0.00031947,2]
[312326327,1705776639073,-500.0,0.00031947,2]
[312326329,1705776639086,-500.0,0.00031947,2]
[312326331,1705776639095,-500.0,0.00031947,2]
[312326333,1705776639104,-362.62023914,0.00031947,2]
[312326335,1705776639113,-500.0,0.00031947,2]
[312326337,1705776639122,-500.0,0.00031947,2]
[312326338,1705776639131,-500.0,0.00031947,2]
[312326340,1705776639141,-500.0,0.00031947,2]
[312326342,1705776639150,-500.0,0.00031947,2]
[312326344,1705776639160,-500.0,0.00031947,2]
[312326346,1705776639170,-500.0,0.00031947,2]
[312326348,1705776639179,-720.10854572,0.00031948,4]
[312326350,1705776639188,-50000.0,0.00031948,6]
[312326352,1705776639197,-50000.0,0.00031948,6]
[312326354,1705776639206,-50000.0,0.00031948,6]
[312326356,1705776639215,-56789.78118478,0.00031948,6]
[312326358,1705776639224,-153.52997654,0.00031999,2]
[312326360,1705776639234,-285201.86665853,0.00032,4]
[312326362,1705776639243,-154.78330338,0.00032,4]
[312326364,1705776639253,-308.487984,0.0003229,2]
[312326366,1705776639262,-457.98624369,0.00032422,2]
[312326368,1705776639271,-533.88001651,0.00032422,2]
[312326370,1705776639280,-8820.09510289,0.00032422,2]
[312326371,1705776639289,-1714.86135887,0.00032422,2]
[312326373,1705776639298,-1094.47895322,0.000325,20]
[312326375,1705776639307,-280.0,0.00032862,15]
[312326377,1705776639317,-250.0,0.00032876,7]
[312326379,1705776639326,-150.0,0.00032999,2]
[312326381,1705776639335,-154.78330338,0.00033,4]
[312326383,1705776639343,-158.97429893,0.00033,2]
[312326385,1705776639352,-171.0,0.00033,2]
[312326387,1705776639361,-308.487984,0.0003317,2]
[312326389,1705776639370,-308.487984,0.00034051,2]
[312326391,1705776639379,-150.78889555,0.00034204,2]
[312326393,1705776639388,-316.16874495,0.00034246,7]
[312326395,1705776639397,-201.327706,0.00034932,2]
[312326397,1705776639406,-308.487984,0.00034932,2]
[312326399,1705776639415,-326.99550108,0.00034988,4]
[312326401,1705776639424,-2984.21958491,0.00034988,4]
[312326403,1705776639433,-725.78026082,0.00034989,4]
[312326405,1705776639442,-333.12649891,0.00035,4]
[312326407,1705776639451,-2085.08363542,0.00035,4]
[312326409,1705776639461,-154.78330338,0.00035,6]
[312326411,1705776639470,-591.88726683,0.00035,2]
[312326413,1705776639480,-154.78330338,0.00035,4]
[312326415,1705776639489,-3119.96924767,0.00035,20]
[312326417,1705776639498,-155.23866682,0.00035,2]
[312326419,1705776639507,-2356.16401148,0.00035,2]
[312326421,1705776639516,-31980.30894113,0.00035,4]
[312326423,1705776639525,-500.0,0.000353,7]
[312326425,1705776639534,-475.68781302,0.00035499,2]
[312326427,1705776639543,-457.79124181,0.00035499,4]
[312326429,1705776639552,-620.66988602,0.00035499,4]
[312326431,1705776639561,-500.0,0.00035499,4]
[312326433,1705776639571,-555.52663894,0.00035499,4]
[312326435,1705776639580,-412.32449765,0.00035499,4]
[312326437,1705776639589,-500.0,0.00035499,4]
[312326439,1705776639597,-500.0,0.00035499,4]
[312326441,1705776639606,-488.35511943,0.00035499,7]
[312326443,1705776639615,-461.95109565,0.00035499,7]
[312326445,1705776639624,-500.0,0.00035499,7]
[312326447,1705776639634,-176.05258695,0.00035499,7]
[312326449,1705776639643,-500.0,0.00035499,7]
[312326451,1705776639652,-500.0,0.00035499,7]
[312326453,1705776639661,-500.0,0.00035499,7]
[312326455,1705776639670,-500.0,0.00035499,7]
[312326457,1705776639679,-243.62733658,0.00035499,7]
[312326459,1705776639688,-500.0,0.00035499,7]
[312326461,1705776639697,-500.0,0.00035499,7]
[312326463,1705776639706,-522.76387989,0.00035499,7]
[312326465,1705776639715,-500.0,0.00035499,7]
[312326467,1705776639725,-500.0,0.00035499,7]
[312326469,1705776639734,-500.0,0.00035499,7]
[312326471,1705776639743,-396.96517936,0.00035499,7]
[312326473,1705776639753,-500.0,0.00035499,7]
[312326475,1705776639762,-500.0,0.00035499,7]
[312326477,1705776639771,-500.0,0.00035499,7]
[312326478,1705776639781,-500.0,0.00035499,7]
[312326479,1705776639790,-500.0,0.00035499,7]
[312326480,1705776639800,-4425.50824305,0.000355,14]
[312326482,1705776639810,-500.0,0.000356,7]
[312326484,1705776639820,-182.36949,0.00035616,120]
[312326486,1705776639830,-308.487984,0.00035812,2]
[312326488,1705776639840,-1000.0,0.000359,7]
[312326489,1705776639851,-5000.0,0.00035956,2]
[312326491,1705776639861,-391.0,0.00036148,15]
[312326492,1705776639870,-308.487984,0.00036693,2]
[312326494,1705776639880,-154.78330338,0.00036986,7]
[312326495,1705776639890,-157.8896426,0.00036986,2]
[312326497,1705776639899,-154.78330338,0.00037,4]
[312326499,1705776639908,-150.0,0.00037,30]
[312326513,1705776640038,-302.0,0.0003718,2]
[312326515,1705776640048,-300.0,0.0003718,2]
[312326517,1705776640057,-150.0,0.000372,30]
[312326519,1705776640067,-212.642763,0.000374,30]
[312326521,1705776640076,-308.487984,0.00037573,2]
[312326523,1705776640089,-243.452,0.00037749,2]
[312326525,1705776640099,-150.0,0.00037749,2]
[312326527,1705776640109,-2139.23248446,0.00038,4]
[312326530,1705776640118,-150.78889555,0.00038004,2]
[312326532,1705776640128,-250.14068304,0.00038004,2]
[312326533,1705776640137,-251991.9861129,0.00038228,2]
[312326536,1705776640146,-39895.15766712,0.00038228,2]
[312326537,1705776640155,-151.0,0.00038357,4]
[312326539,1705776640165,-308.487984,0.00038454,2]
[312326541,1705776640174,-151.0,0.00038488,4]
[312326543,1705776640183,-151.0,0.00038618,4]
[312326546,1705776640192,-301.57779109,0.00038643,4]
[312326550,1705776640204,-151.0,0.00038749,4]
[312326551,1705776640213,-151.0,0.00038879,4]
[312326554,1705776640223,-330.12335671,0.00038995,2]
[312326556,1705776640232,-151.0,0.0003901,4]
[312326557,1705776640241,-12249.29617136,0.0003904,5]
[312326560,1705776640251,-151.0,0.0003914,4]
[312326561,1705776640260,-151.0,0.00039271,4]
[312326563,1705776640269,-603.15558218,0.00039293,7]
[312326565,1705776640278,-308.487984,0.00039335,2]
[312326568,1705776640288,-151.0,0.00039401,4]
[312326569,1705776640298,-151.0,0.00039532,4]
[312326571,1705776640307,-245.17457541,0.000396,30]
[312326573,1705776640316,-151.0,0.00039662,4]
[312326575,1705776640325,-200.0,0.00039763,30]
[312326577,1705776640334,-348.0,0.00039763,30]
[312326579,1705776640343,-151.0,0.00039793,4]
[312326581,1705776640352,-50000.0,0.00039885,7]
[312326583,1705776640361,-50000.0,0.00039885,7]
[312326585,1705776640370,-5000.0,0.00039885,7]
[312326587,1705776640378,-5000.0,0.00039885,7]
[312326589,1705776640388,-151.0,0.00039923,4]
[312326591,1705776640396,-166.76045536,0.00039953,4]
[312326593,1705776640406,-5769.07722314,0.0003999,4]
[312326595,1705776640414,-6078.02399204,0.00039992,7]
[312326597,1705776640424,-154.78330338,0.0004,7]
[312326599,1705776640433,-154.78330338,0.0004,4]
[312326601,1705776640442,-1599.91772387,0.0004,4]
[312326603,1705776640451,-500.0,0.0004,10]
[312326605,1705776640460,-290.53429954,0.0004,4]
[312326607,1705776640469,-249.35630735,0.0004,2]
[312326609,1705776640478,-592.4338243,0.0004,30]
[312326611,1705776640487,-1845.46619047,0.0004,4]
[312326613,1705776640496,-1000.0,0.00040043,10]
[312326615,1705776640504,-1000.0,0.00040043,10]
[312326617,1705776640513,-151.0,0.00040054,2]
[312326619,1705776640522,-151.0,0.00040054,21]
[312326621,1705776640531,-333.2863,0.00040073,7]
[312326623,1705776640539,-166.679109,0.00040133,2]
[312326625,1705776640548,-199.356475,0.00040133,2]
[312326627,1705776640557,-151.0,0.00040184,21]
[312326629,1705776640565,-308.487984,0.00040215,2]
[312326631,1705776640575,-159.57600549,0.00040235,30]
[312326633,1705776640585,-1206.31116437,0.00040287,30]
[312326635,1705776640594,-151.0,0.00040315,21]
[312326637,1705776640603,-151.0,0.00040445,21]
[312326639,1705776640612,-151.0,0.00040575,21]
[312326641,1705776640621,-575.0,0.000406,30]
[312326643,1705776640630,-199.356475,0.00040635,2]
[312326645,1705776640639,-1500.0,0.000407,3]
[312326647,1705776640648,-151.0,0.00040706,21]
[312326649,1705776640656,-150.0,0.00040749,2]
[312326651,1705776640665,-166.679109,0.00040802,2]
[312326653,1705776640675,-151.0,0.00040836,21]
[312326655,1705776640684,-159.57600549,0.0004088,30]
[312326657,1705776640693,-5000.0,0.00040956,4]
[312326659,1705776640701,-151.0,0.00040956,2]
[312326661,1705776640710,-4835.053427,0.00040956,2]
[312326663,1705776640719,-4835.053427,0.00040956,2]
[312326665,1705776640728,-357.313658,0.00040956,2]
[312326667,1705776640738,-357.313658,0.00040956,2]
[312326669,1705776640747,-151.0,0.00040967,21]
[312326671,1705776640756,-150.0,0.00041,34]
[312326673,1705776640765,-160.0,0.00041,14]
[312326675,1705776640774,-156.89344232,0.00041005,30]
[312326677,1705776640783,-1455.91236555,0.00041083,2]
[312326680,1705776640793,-151.0,0.00041094,2]
[312326682,1705776640803,-151.0,0.00041094,2]
[312326684,1705776640811,-2585.16227083,0.00041094,4]
[312326686,1705776640821,-264.78480522,0.00041094,4]
[312326688,1705776640830,-500.0,0.00041095,31]
[312326689,1705776640839,-4938.6206514,0.00041095,4]
[312326691,1705776640848,-309.64420385,0.00041095,4]
[312326693,1705776640857,-323.57586002,0.00041095,3]
[312326695,1705776640866,-980.8946807,0.00041095,4]
[312326697,1705776640876,-522.0156141,0.00041095,31]
[312326699,1705776640884,-600.89956113,0.00041095,4]
[312326701,1705776640893,-500.0,0.00041095,31]
[312326703,1705776640902,-500.0,0.00041095,31]
[312326705,1705776640912,-500.0,0.00041095,7]
[312326708,1705776640921,-500.0,0.00041095,31]
[312326710,1705776640931,-500.0,0.00041095,31]
[312326711,1705776640940,-500.0,0.00041095,7]
[312326713,1705776640950,-204.48495591,0.00041095,31]
[312326716,1705776640959,-500.0,0.00041095,31]
[312326718,1705776640969,-500.0,0.00041095,31]
[312326719,1705776640978,-500.0,0.00041095,31]
[312326722,1705776640988,-500.0,0.00041095,31]
[312326723,1705776640998,-500.0,0.00041095,31]
[312326725,1705776641007,-500.0,0.00041095,31]
[312326727,1705776641016,-500.0,0.00041095,31]
[312326729,1705776641025,-500.0,0.00041095,31]
[312326731,1705776641034,-500.0,0.00041095,31]
[312326733,1705776641043,-677.54,0.00041095,31]
[312326735,1705776641052,-514.19775012,0.00041095,31]
[312326737,1705776641061,-500.0,0.00041095,31]
[312326739,1705776641072,-500.0,0.00041095,31]
[312326741,1705776641082,-150.0,0.00041095,31]
[312326743,1705776641091,-500.0,0.00041095,31]
[312326745,1705776641100,-500.0,0.00041095,31]
[312326747,1705776641110,-500.0,0.00041095,31]
[312326749,1705776641119,-500.0,0.00041095,31]
[312326751,1705776641128,-500.42422875,0.00041095,31]
[312326753,1705776641137,-503.80529713,0.00041095,31]
[312326755,1705776641146,-500.0,0.00041095,31]
[312326757,1705776641155,-713.99,0.00041095,31]
[312326759,1705776641166,-500.0,0.00041095,31]
[312326761,1705776641175,-500.0,0.00041095,31]
[312326763,1705776641184,-407.35585808,0.00041095,31]
[312326765,1705776641194,-500.0,0.00041095,31]
[312326767,1705776641203,-500.0,0.00041095,31]
[312326769,1705776641212,-500.22970121,0.00041095,31]
[312326771,1705776641221,-500.0,0.00041095,31]
[312326773,1705776641230,-500.0,0.00041095,31]
[312326775,1705776641239,-566.56018408,0.00041095,31]
[312326777,1705776641248,-539.35675995,0.00041095,31]
[312326779,1705776641257,-636.01619355,0.00041095,31]
[312326781,1705776641266,-500.0,0.00041095,31]
[312326783,1705776641275,-500.0,0.00041095,31]
[312326785,1705776641285,-500.0,0.00041095,31]
[312326788,1705776641295,-597.34938627,0.00041095,31]
[312326789,1705776641304,-500.0,0.00041095,31]
[312326791,1705776641313,-500.0,0.00041095,31]
[312326793,1705776641322,-500.0,0.00041095,7]
[312326795,1705776641331,-500.0,0.00041095,31]
[312326797,1705776641340,-500.0,0.00041095,31]
[312326799,1705776641349,-500.0,0.00041095,31]
[312326801,1705776641358,-500.0,0.00041095,31]
[312326803,1705776641366,-431.57849528,0.00041095,2]
[312326805,1705776641376,-500.0,0.00041095,31]
[312326807,1705776641385,-593.77,0.00041095,31]
[312326809,1705776641394,-511.95967185,0.00041095,31]
[312326811,1705776641403,-385.99339565,0.00041095,31]
[312326814,1705776641412,-1013.09196316,0.00041095,2]
[312326815,1705776641422,-500.0,0.00041095,31]
[312326817,1705776641431,-500.0,0.00041095,31]
[312326819,1705776641439,-500.0,0.00041095,31]
[312326821,1705776641449,-502.19554854,0.00041095,31]
[312326824,1705776641458,-500.0,0.00041095,31]
[312326826,1705776641468,-500.0,0.00041095,31]
[312326828,1705776641477,-500.0,0.00041095,31]
[312326830,1705776641486,-704.85,0.00041095,31]
[312326832,1705776641496,-500.0,0.00041095,31]
[312326833,1705776641505,-500.0,0.00041095,31]
[312326835,1705776641514,-352.57528232,0.00041095,31]
[312326837,1705776641523,-532.63566913,0.00041095,31]
[312326839,1705776641533,-500.0,0.00041095,31]
[312326841,1705776641542,-500.0,0.00041095,31]
[312326843,1705776641550,-500.61292987,0.00041095,31]
[312326845,1705776641559,-500.9919757,0.00041095,31]
[312326846,1705776641568,-500.0,0.00041095,31]
[312326847,1705776641577,-500.0,0.00041095,31]
[312326848,1705776641586,-500.0,0.00041095,30]
[312326849,1705776641595,-500.0,0.00041095,30]
[312326850,1705776641604,-500.0,0.00041095,30]
[312326851,1705776641612,-500.0,0.00041095,30]
[312326852,1705776641621,-501.44529733,0.00041095,30]
[312326853,1705776641629,-500.0,0.00041095,31]
[312326854,1705776641638,-500.0,0.00041095,31]
[312326855,1705776641647,-500.0,0.00041095,31]
[312326856,1705776641655,-500.0,0.00041095,31]
[312326857,1705776641664,-500.0,0.00041095,31]
[312326858,1705776641673,-568.38,0.00041095,31]
[312326859,1705776641682,-434.42708467,0.00041095,31]
[312326860,1705776641690,-500.0,0.00041095,31]
[312326861,1705776641699,-298.25141498,0.00041095,31]
[312326862,1705776641708,-517.3988449,0.00041095,31]
[312326863,1705776641717,-443.41846203,0.00041095,3]
[312326865,1705776641727,-500.0,0.00041095,2]
[312326867,1705776641736,-704.37,0.00041095,31]
[312326869,1705776641745,-501.35538288,0.00041095,31]
[312326871,1705776641754,-1089.14,0.00041095,31]
[312326873,1705776641763,-500.0,0.00041095,31]
[312326875,1705776641772,-500.0,0.00041095,31]
[312326877,1705776641781,-500.0,0.00041095,31]
[312326878,1705776641790,-500.0,0.00041095,31]
[312326880,1705776641800,-500.0,0.00041095,31]
[312326882,1705776641809,-503.49905887,0.00041095,31]
[312326884,1705776641818,-500.0,0.00041095,31]
[312326886,1705776641827,-500.0,0.00041095,31]
[312326888,1705776641836,-1000.0,0.00041095,2]
[312326890,1705776641844,-220.0,0.00041095,2]
[312326892,1705776641853,-500.0,0.00041095,31]
[312326894,1705776641862,-500.0,0.00041095,31]
[312326896,1705776641871,-500.0,0.00041095,31]
[312326898,1705776641880,-500.0,0.00041095,31]
[312326900,1705776641890,-503.81675631,0.00041095,31]
[312326902,1705776641899,-212.68094512,0.00041095,31]
[312326904,1705776641908,-500.0,0.00041095,31]
[312326906,1705776641917,-500.0,0.00041095,31]
[312326908,1705776641926,-500.0,0.00041095,31]
[312326910,1705776641935,-527.86052604,0.00041095,31]
[312326912,1705776641944,-500.0,0.00041095,31]
[312326914,1705776641953,-500.0,0.00041095,31]
[312326916,1705776641962,-500.0,0.00041095,31]
[312326918,1705776641972,-500.0,0.00041095,31]
[312326920,1705776641981,-500.0,0.00041095,31]
[312326922,1705776641991,-507.85197413,0.00041095,31]
[312326924,1705776642000,-500.0,0.00041095,31]
[312326926,1705776642009,-709.09,0.00041095,31]
[312326928,1705776642018,-335.69574307,0.00041095,31]
[312326930,1705776642027,-500.0,0.00041095,31]
[312326931,1705776642036,-579.89252272,0.00041095,31]
[312326933,1705776642045,-617.74617135,0.00041095,31]
[312326935,1705776642053,-500.0,0.00041095,2]
[312326937,1705776642062,-197.49198378,0.00041095,31]
[312326939,1705776642071,-500.0,0.00041095,31]
[312326941,1705776642080,-500.0,0.00041095,31]
[312326943,1705776642090,-500.0,0.00041095,31]
[312326945,1705776642099,-500.0,0.00041095,31]
[312326947,1705776642108,-500.0,0.00041095,31]
[312326949,1705776642116,-500.0,0.00041095,31]
[312326951,1705776642126,-500.0,0.00041095,31]
[312326953,1705776642136,-500.0,0.00041095,31]
[312326955,1705776642145,-500.0,0.00041095,31]
[312326957,1705776642154,-1368.14,0.00041095,31]
[312326959,1705776642164,-500.0,0.00041095,31]
[312326961,1705776642174,-500.0,0.00041095,31]
[312326963,1705776642185,-500.0,0.00041095,31]
[312326965,1705776642194,-500.0,0.00041095,31]
[312326967,1705776642204,-500.19418103,0.00041095,31]
[312326969,1705776642213,-428.12595652,0.00041095,2]
[312326971,1705776642222,-500.0,0.00041095,31]
[312326973,1705776642231,-500.0,0.00041095,31]
[312326975,1705776642240,-500.0,0.00041095,31]